{"text_format":"3","workbook":"xlsx","n_sheets":1,"sheets":["Årlig tidrapport"],"not_rendered":{"defined_names":2},"read":"whole","date_system":"1900"}

{"sheet":"Årlig tidrapport","index":0,"n_rows":140,"n_cols":12,"rows_kept":140,"merged":[[0,1,1,11],[2,6,2,7],[2,8,2,9],[5,1,5,11],[15,3,15,4],[26,3,26,4],[37,3,37,4],[39,1,39,11],[49,3,49,4],[60,3,60,4],[71,3,71,4],[73,1,73,11],[83,3,83,4],[94,3,94,4],[105,3,105,4],[107,1,107,11],[117,3,117,4],[128,3,128,4],[139,3,139,4]]}
[null,"Anställds tidkort"]
[]
[null,"Anställds namn:",null,"E-post:",null,null,"Totalt från början av året:"]
[null,"Chef:",null,"Telefon:",null,null,"Normal arbetstid:",{"$f":"SUM(C16,C27,C38,C50,C61,C72,C84,C95,C106,C118,C129,C140)","v":0},"Övertidstimmar:",{"$f":"SUM(F16,F27,F38,F50,F61,F72,F84,F95,F106,F118,F129,F140)","v":0},"Totalt:",{"$f":"SUM(H4,J4)","v":0}]
[]
[null,"Januari, februari, mars      Anställds tidkort: Per dag, vecka, månad, år"]
[null,"Januari","Vecka 1","Övertid","Vecka 2","Övertid ","Vecka 3","Övertid  ","Vecka 4","Övertid   ","Vecka 5","Övertid    "]
[null,"Måndag"]
[null,"Tisdag"]
[null,"Onsdag"]
[null,"Torsdag"]
[null,"Fredag"]
[null,"Lördag"]
[null,"Söndag"]
[null,"Totalt antal timmar per vecka",{"$f":"SUBTOTAL(109,Januari[Vecka 1])","v":0},{"$f":"SUBTOTAL(109,Januari[Övertid])","v":0},{"$f":"SUBTOTAL(109,Januari[Vecka 2])","v":0},{"$f":"SUBTOTAL(109,Januari[[Övertid ]])","v":0},{"$f":"SUBTOTAL(109,Januari[Vecka 3])","v":0},{"$f":"SUBTOTAL(109,Januari[[Övertid  ]])","v":0},{"$f":"SUBTOTAL(109,Januari[Vecka 4])","v":0},{"$f":"SUBTOTAL(109,Januari[[Övertid   ]])","v":0},{"$f":"SUBTOTAL(109,Januari[Vecka 5])","v":0},{"$f":"SUBTOTAL(109,Januari[[Övertid    ]])","v":0}]
[null,"Totalt januari: Normal arbetstid",{"$f":"SUM(Januari[[#Totals],[Vecka 1]],Januari[[#Totals],[Vecka 2]],Januari[[#Totals],[Vecka 3]],Januari[[#Totals],[Vecka 4]],Januari[[#Totals],[Vecka 5]])","v":0},"Totalt januari: Övertid",null,{"$f":"SUM(Januari[[#Totals],[Övertid]],Januari[[#Totals],[Övertid ]],Januari[[#Totals],[Övertid  ]],Januari[[#Totals],[Övertid   ]],Januari[[#Totals],[Övertid    ]])","v":0}]
[]
[null,"Februari","Vecka 1","Övertid","Vecka 2","Övertid ","Vecka 3","Övertid  ","Vecka 4","Övertid   ","Vecka 5","Övertid    "]
[null,"Måndag"]
[null,"Tisdag"]
[null,"Onsdag"]
[null,"Torsdag"]
[null,"Fredag"]
[null,"Lördag"]
[null,"Söndag"]
[null,"Totalt antal timmar per vecka",{"$f":"SUBTOTAL(109,Februari[Vecka 1])","v":0},{"$f":"SUBTOTAL(109,Februari[Övertid])","v":0},{"$f":"SUBTOTAL(109,Februari[Vecka 2])","v":0},{"$f":"SUBTOTAL(109,Februari[[Övertid ]])","v":0},{"$f":"SUBTOTAL(109,Februari[Vecka 3])","v":0},{"$f":"SUBTOTAL(109,Februari[[Övertid  ]])","v":0},{"$f":"SUBTOTAL(109,Februari[Vecka 4])","v":0},{"$f":"SUBTOTAL(109,Februari[[Övertid   ]])","v":0},{"$f":"SUBTOTAL(109,Februari[Vecka 5])","v":0},{"$f":"SUBTOTAL(109,Februari[[Övertid    ]])","v":0}]
[null,"Totalt februari: Normal arbetstid",{"$f":"SUM(Februari[[#Totals],[Vecka 1]],Februari[[#Totals],[Vecka 2]],Februari[[#Totals],[Vecka 3]],Februari[[#Totals],[Vecka 4]],Februari[[#Totals],[Vecka 5]])","v":0},"Totalt februari: Övertid",null,{"$f":"SUM(Februari[[#Totals],[Övertid]],Februari[[#Totals],[Övertid ]],Februari[[#Totals],[Övertid  ]],Februari[[#Totals],[Övertid   ]],Februari[[#Totals],[Övertid    ]])","v":0}]
[]
[null,"Mars","Vecka 1","Övertid","Vecka 2","Övertid ","Vecka 3","Övertid  ","Vecka 4","Övertid   ","Vecka 5","Övertid    "]
[null,"Måndag"]
[null,"Tisdag"]
[null,"Onsdag"]
[null,"Torsdag"]
[null,"Fredag"]
[null,"Lördag"]
[null,"Söndag"]
[null,"Totalt antal timmar per vecka",{"$f":"SUBTOTAL(109,Mars[Vecka 1])","v":0},{"$f":"SUBTOTAL(109,Mars[Övertid])","v":0},{"$f":"SUBTOTAL(109,Mars[Vecka 2])","v":0},{"$f":"SUBTOTAL(109,Mars[[Övertid ]])","v":0},{"$f":"SUBTOTAL(109,Mars[Vecka 3])","v":0},{"$f":"SUBTOTAL(109,Mars[[Övertid  ]])","v":0},{"$f":"SUBTOTAL(109,Mars[Vecka 4])","v":0},{"$f":"SUBTOTAL(109,Mars[[Övertid   ]])","v":0},{"$f":"SUBTOTAL(109,Mars[Vecka 5])","v":0},{"$f":"SUBTOTAL(109,Mars[[Övertid    ]])","v":0}]
[null,"Totalt mars: Normal arbetstid",{"$f":"SUM(Mars[[#Totals],[Vecka 1]],Mars[[#Totals],[Vecka 2]],Mars[[#Totals],[Vecka 3]],Mars[[#Totals],[Vecka 4]],Mars[[#Totals],[Vecka 5]])","v":0},"Totalt mars: Övertid",null,{"$f":"SUM(Mars[[#Totals],[Övertid]],Mars[[#Totals],[Övertid ]],Mars[[#Totals],[Övertid  ]],Mars[[#Totals],[Övertid   ]],Mars[[#Totals],[Övertid    ]])","v":0}]
[]
[null,"April, maj, juni      Anställds tidkort: Per dag, vecka, månad, år"]
[null,"April","Vecka 1","Övertid","Vecka 2","Övertid ","Vecka 3","Övertid  ","Vecka 4","Övertid   ","Vecka 5","Övertid    "]
[null,"Måndag"]
[null,"Tisdag"]
[null,"Onsdag"]
[null,"Torsdag"]
[null,"Fredag"]
[null,"Lördag"]
[null,"Söndag"]
[null,"Totalt antal timmar per vecka",{"$f":"SUBTOTAL(109,April[Vecka 1])","v":0},{"$f":"SUBTOTAL(109,April[Övertid])","v":0},{"$f":"SUBTOTAL(109,April[Vecka 2])","v":0},{"$f":"SUBTOTAL(109,April[[Övertid ]])","v":0},{"$f":"SUBTOTAL(109,April[Vecka 3])","v":0},{"$f":"SUBTOTAL(109,April[[Övertid  ]])","v":0},{"$f":"SUBTOTAL(109,April[Vecka 4])","v":0},{"$f":"SUBTOTAL(109,April[[Övertid   ]])","v":0},{"$f":"SUBTOTAL(109,April[Vecka 5])","v":0},{"$f":"SUBTOTAL(109,April[[Övertid    ]])","v":0}]
[null,"Totalt april: Normal arbetstid",{"$f":"SUM(April[[#Totals],[Vecka 1]],April[[#Totals],[Vecka 2]],April[[#Totals],[Vecka 3]],April[[#Totals],[Vecka 4]],April[[#Totals],[Vecka 5]])","v":0},"Totalt april: Övertid",null,{"$f":"SUM(April[[#Totals],[Övertid]],April[[#Totals],[Övertid ]],April[[#Totals],[Övertid  ]],April[[#Totals],[Övertid   ]],April[[#Totals],[Övertid    ]])","v":0}]
[]
[null,"Maj","Vecka 1","Övertid","Vecka 2","Övertid ","Vecka 3","Övertid  ","Vecka 4","Övertid   ","Vecka 5","Övertid    "]
[null,"Måndag"]
[null,"Tisdag"]
[null,"Onsdag"]
[null,"Torsdag"]
[null,"Fredag"]
[null,"Lördag"]
[null,"Söndag"]
[null,"Totalt antal timmar per vecka",{"$f":"SUBTOTAL(109,Maj[Vecka 1])","v":0},{"$f":"SUBTOTAL(109,Maj[Övertid])","v":0},{"$f":"SUBTOTAL(109,Maj[Vecka 2])","v":0},{"$f":"SUBTOTAL(109,Maj[[Övertid ]])","v":0},{"$f":"SUBTOTAL(109,Maj[Vecka 3])","v":0},{"$f":"SUBTOTAL(109,Maj[[Övertid  ]])","v":0},{"$f":"SUBTOTAL(109,Maj[Vecka 4])","v":0},{"$f":"SUBTOTAL(109,Maj[[Övertid   ]])","v":0},{"$f":"SUBTOTAL(109,Maj[Vecka 5])","v":0},{"$f":"SUBTOTAL(109,Maj[[Övertid    ]])","v":0}]
[null,"Totalt maj: Normal arbetstid",{"$f":"SUM(Maj[[#Totals],[Vecka 1]],Maj[[#Totals],[Vecka 2]],Maj[[#Totals],[Vecka 3]],Maj[[#Totals],[Vecka 4]],Maj[[#Totals],[Vecka 5]])","v":0},"Totalt maj: Övertid",null,{"$f":"SUM(Maj[[#Totals],[Övertid]],Maj[[#Totals],[Övertid ]],Maj[[#Totals],[Övertid  ]],Maj[[#Totals],[Övertid   ]],Maj[[#Totals],[Övertid    ]])","v":0}]
[]
[null,"Juni","Vecka 1","Övertid","Vecka 2","Övertid ","Vecka 3","Övertid  ","Vecka 4","Övertid   ","Vecka 5","Övertid    "]
[null,"Måndag"]
[null,"Tisdag"]
[null,"Onsdag"]
[null,"Torsdag"]
[null,"Fredag"]
[null,"Lördag"]
[null,"Söndag"]
[null,"Totalt antal timmar per vecka",{"$f":"SUBTOTAL(109,Juni[Vecka 1])","v":0},{"$f":"SUBTOTAL(109,Juni[Övertid])","v":0},{"$f":"SUBTOTAL(109,Juni[Vecka 2])","v":0},{"$f":"SUBTOTAL(109,Juni[[Övertid ]])","v":0},{"$f":"SUBTOTAL(109,Juni[Vecka 3])","v":0},{"$f":"SUBTOTAL(109,Juni[[Övertid  ]])","v":0},{"$f":"SUBTOTAL(109,Juni[Vecka 4])","v":0},{"$f":"SUBTOTAL(109,Juni[[Övertid   ]])","v":0},{"$f":"SUBTOTAL(109,Juni[Vecka 5])","v":0},{"$f":"SUBTOTAL(109,Juni[[Övertid    ]])","v":0}]
[null,"Totalt juni: Normal arbetstid",{"$f":"SUM(Juni[[#Totals],[Vecka 1]],Juni[[#Totals],[Vecka 2]],Juni[[#Totals],[Vecka 3]],Juni[[#Totals],[Vecka 4]],Juni[[#Totals],[Vecka 5]])","v":0},"Totalt juni: Övertid",null,{"$f":"SUM(Juni[[#Totals],[Övertid]],Juni[[#Totals],[Övertid ]],Juni[[#Totals],[Övertid  ]],Juni[[#Totals],[Övertid   ]],Juni[[#Totals],[Övertid    ]])","v":0}]
[]
[null,"Juli, augusti, september      Anställds tidkort: Per dag, vecka, månad, år"]
[null,"Juli","Vecka 1","Övertid","Vecka 2","Övertid ","Vecka 3","Övertid  ","Vecka 4","Övertid   ","Vecka 5","Övertid    "]
[null,"Måndag"]
[null,"Tisdag"]
[null,"Onsdag"]
[null,"Torsdag"]
[null,"Fredag"]
[null,"Lördag"]
[null,"Söndag"]
[null,"Totalt antal timmar per vecka",{"$f":"SUBTOTAL(109,Juli[Vecka 1])","v":0},{"$f":"SUBTOTAL(109,Juli[Övertid])","v":0},{"$f":"SUBTOTAL(109,Juli[Vecka 2])","v":0},{"$f":"SUBTOTAL(109,Juli[[Övertid ]])","v":0},{"$f":"SUBTOTAL(109,Juli[Vecka 3])","v":0},{"$f":"SUBTOTAL(109,Juli[[Övertid  ]])","v":0},{"$f":"SUBTOTAL(109,Juli[Vecka 4])","v":0},{"$f":"SUBTOTAL(109,Juli[[Övertid   ]])","v":0},{"$f":"SUBTOTAL(109,Juli[Vecka 5])","v":0},{"$f":"SUBTOTAL(109,Juli[[Övertid    ]])","v":0}]
[null,"Totalt juli: Normal arbetstid",{"$f":"SUM(Juli[[#Totals],[Vecka 1]],Juli[[#Totals],[Vecka 2]],Juli[[#Totals],[Vecka 3]],Juli[[#Totals],[Vecka 4]],Juli[[#Totals],[Vecka 5]])","v":0},"Totalt juli: Övertid",null,{"$f":"SUM(Juli[[#Totals],[Övertid]],Juli[[#Totals],[Övertid ]],Juli[[#Totals],[Övertid  ]],Juli[[#Totals],[Övertid   ]],Juli[[#Totals],[Övertid    ]])","v":0}]
[]
[null,"Augusti","Vecka 1","Övertid","Vecka 2","Övertid ","Vecka 3","Övertid  ","Vecka 4","Övertid   ","Vecka 5","Övertid    "]
[null,"Måndag"]
[null,"Tisdag"]
[null,"Onsdag"]
[null,"Torsdag"]
[null,"Fredag"]
[null,"Lördag"]
[null,"Söndag"]
[null,"Totalt antal timmar per vecka",{"$f":"SUBTOTAL(109,Augusti[Vecka 1])","v":0},{"$f":"SUBTOTAL(109,Augusti[Övertid])","v":0},{"$f":"SUBTOTAL(109,Augusti[Vecka 2])","v":0},{"$f":"SUBTOTAL(109,Augusti[[Övertid ]])","v":0},{"$f":"SUBTOTAL(109,Augusti[Vecka 3])","v":0},{"$f":"SUBTOTAL(109,Augusti[[Övertid  ]])","v":0},{"$f":"SUBTOTAL(109,Augusti[Vecka 4])","v":0},{"$f":"SUBTOTAL(109,Augusti[[Övertid   ]])","v":0},{"$f":"SUBTOTAL(109,Augusti[Vecka 5])","v":0},{"$f":"SUBTOTAL(109,Augusti[[Övertid    ]])","v":0}]
[null,"Totalt augusti: Normal arbetstid",{"$f":"SUM(Augusti[[#Totals],[Vecka 1]],Augusti[[#Totals],[Vecka 2]],Augusti[[#Totals],[Vecka 3]],Augusti[[#Totals],[Vecka 4]],Augusti[[#Totals],[Vecka 5]])","v":0},"Totalt augusti: Övertid",null,{"$f":"SUM(Augusti[[#Totals],[Övertid]],Augusti[[#Totals],[Övertid ]],Augusti[[#Totals],[Övertid  ]],Augusti[[#Totals],[Övertid   ]],Augusti[[#Totals],[Övertid    ]])","v":0}]
[]
[null,"September","Vecka 1","Övertid","Vecka 2","Övertid ","Vecka 3","Övertid  ","Vecka 4","Övertid   ","Vecka 5","Övertid    "]
[null,"Måndag"]
[null,"Tisdag"]
[null,"Onsdag"]
[null,"Torsdag"]
[null,"Fredag"]
[null,"Lördag"]
[null,"Söndag"]
[null,"Totalt antal timmar per vecka",{"$f":"SUBTOTAL(109,September[Vecka 1])","v":0},{"$f":"SUBTOTAL(109,September[Övertid])","v":0},{"$f":"SUBTOTAL(109,September[Vecka 2])","v":0},{"$f":"SUBTOTAL(109,September[[Övertid ]])","v":0},{"$f":"SUBTOTAL(109,September[Vecka 3])","v":0},{"$f":"SUBTOTAL(109,September[[Övertid  ]])","v":0},{"$f":"SUBTOTAL(109,September[Vecka 4])","v":0},{"$f":"SUBTOTAL(109,September[[Övertid   ]])","v":0},{"$f":"SUBTOTAL(109,September[Vecka 5])","v":0},{"$f":"SUBTOTAL(109,September[[Övertid    ]])","v":0}]
[null,"Totalt september: Normal arbetstid",{"$f":"SUM(September[[#Totals],[Vecka 1]],September[[#Totals],[Vecka 2]],September[[#Totals],[Vecka 3]],September[[#Totals],[Vecka 4]],September[[#Totals],[Vecka 5]])","v":0},"Totalt september: Övertid",null,{"$f":"SUM(September[[#Totals],[Övertid]],September[[#Totals],[Övertid ]],September[[#Totals],[Övertid  ]],September[[#Totals],[Övertid   ]],September[[#Totals],[Övertid    ]])","v":0}]
[]
[null,"Oktober, november, december      Anställds tidkort: Per dag, vecka, månad, år"]
[null,"Oktober","Vecka 1","Övertid","Vecka 2","Övertid ","Vecka 3","Övertid  ","Vecka 4","Övertid   ","Vecka 5","Övertid    "]
[null,"Måndag"]
[null,"Tisdag"]
[null,"Onsdag"]
[null,"Torsdag"]
[null,"Fredag"]
[null,"Lördag"]
[null,"Söndag"]
[null,"Totalt antal timmar per vecka",{"$f":"SUBTOTAL(109,Oktober[Vecka 1])","v":0},{"$f":"SUBTOTAL(109,Oktober[Övertid])","v":0},{"$f":"SUBTOTAL(109,Oktober[Vecka 2])","v":0},{"$f":"SUBTOTAL(109,Oktober[[Övertid ]])","v":0},{"$f":"SUBTOTAL(109,Oktober[Vecka 3])","v":0},{"$f":"SUBTOTAL(109,Oktober[[Övertid  ]])","v":0},{"$f":"SUBTOTAL(109,Oktober[Vecka 4])","v":0},{"$f":"SUBTOTAL(109,Oktober[[Övertid   ]])","v":0},{"$f":"SUBTOTAL(109,Oktober[Vecka 5])","v":0},{"$f":"SUBTOTAL(109,Oktober[[Övertid    ]])","v":0}]
[null,"Totalt oktober: Normal arbetstid",{"$f":"SUM(Oktober[[#Totals],[Vecka 1]],Oktober[[#Totals],[Vecka 2]],Oktober[[#Totals],[Vecka 3]],Oktober[[#Totals],[Vecka 4]],Oktober[[#Totals],[Vecka 5]])","v":0},"Totalt oktober: Övertid",null,{"$f":"SUM(Oktober[[#Totals],[Övertid]],Oktober[[#Totals],[Övertid ]],Oktober[[#Totals],[Övertid  ]],Oktober[[#Totals],[Övertid   ]],Oktober[[#Totals],[Övertid    ]])","v":0}]
[]
[null,"November","Vecka 1","Övertid","Vecka 2","Övertid ","Vecka 3","Övertid  ","Vecka 4","Övertid   ","Vecka 5","Övertid    "]
[null,"Måndag"]
[null,"Tisdag"]
[null,"Onsdag"]
[null,"Torsdag"]
[null,"Fredag"]
[null,"Lördag"]
[null,"Söndag"]
[null,"Totalt antal timmar per vecka",{"$f":"SUBTOTAL(109,November[Vecka 1])","v":0},{"$f":"SUBTOTAL(109,November[Övertid])","v":0},{"$f":"SUBTOTAL(109,November[Vecka 2])","v":0},{"$f":"SUBTOTAL(109,November[[Övertid ]])","v":0},{"$f":"SUBTOTAL(109,November[Vecka 3])","v":0},{"$f":"SUBTOTAL(109,November[[Övertid  ]])","v":0},{"$f":"SUBTOTAL(109,November[Vecka 4])","v":0},{"$f":"SUBTOTAL(109,November[[Övertid   ]])","v":0},{"$f":"SUBTOTAL(109,November[Vecka 5])","v":0},{"$f":"SUBTOTAL(109,November[[Övertid    ]])","v":0}]
[null,"Totalt november: Normal arbetstid",{"$f":"SUM(November[[#Totals],[Vecka 1]],November[[#Totals],[Vecka 2]],November[[#Totals],[Vecka 3]],November[[#Totals],[Vecka 4]],November[[#Totals],[Vecka 5]])","v":0},"Totalt november: Övertid",null,{"$f":"SUM(November[[#Totals],[Övertid]],November[[#Totals],[Övertid ]],November[[#Totals],[Övertid  ]],November[[#Totals],[Övertid   ]],November[[#Totals],[Övertid    ]])","v":0}]
[]
[null,"December","Vecka 1","Övertid","Vecka 2","Övertid ","Vecka 3","Övertid  ","Vecka 4","Övertid   ","Vecka 5","Övertid    "]
[null,"Måndag"]
[null,"Tisdag"]
[null,"Onsdag"]
[null,"Torsdag"]
[null,"Fredag"]
[null,"Lördag"]
[null,"Söndag"]
[null,"Totalt antal timmar per vecka",{"$f":"SUBTOTAL(109,December[Vecka 1])","v":0},{"$f":"SUBTOTAL(109,December[Övertid])","v":0},{"$f":"SUBTOTAL(109,December[Vecka 2])","v":0},{"$f":"SUBTOTAL(109,December[[Övertid ]])","v":0},{"$f":"SUBTOTAL(109,December[Vecka 3])","v":0},{"$f":"SUBTOTAL(109,December[[Övertid  ]])","v":0},{"$f":"SUBTOTAL(109,December[Vecka 4])","v":0},{"$f":"SUBTOTAL(109,December[[Övertid   ]])","v":0},{"$f":"SUBTOTAL(109,December[Vecka 5])","v":0},{"$f":"SUBTOTAL(109,December[[Övertid    ]])","v":0}]
[null,"Totalt december: Normal arbetstid",{"$f":"SUM(December[[#Totals],[Vecka 1]],December[[#Totals],[Vecka 2]],December[[#Totals],[Vecka 3]],December[[#Totals],[Vecka 4]],December[[#Totals],[Vecka 5]])","v":0},"Totalt december: Övertid",null,{"$f":"SUM(December[[#Totals],[Övertid]],December[[#Totals],[Övertid ]],December[[#Totals],[Övertid  ]],December[[#Totals],[Övertid   ]],December[[#Totals],[Övertid    ]])","v":0}]